Cogmind - Beta 14 @@@ ROGUE MODE // 2024.08.21 @ 19:52:52 Player: TheProctologist Result: Destroyed by D-53 Grenadier with Mini Grenade Launcher Performance ------------- Evolutions (0) 0 Regions Visited (2) 400 Robots Destroyed (30) 150 Value Destroyed (716) 716 Prototype IDs (0) 0 Alien Tech Used (0) 0 Bonus (0) 0 TOTAL SCORE: 1266 Bonus ------- None Cogmind --------- Core Integrity 0/250 Matter 273/300 Energy 37/100 System Corruption 0% Temperature Warm (107) Movement Core (450) Ox8 Location -10/Mines Parts ------- > --- POWER (1) -------- (None) > --- PROPULSION (2) --- (None) > --- UTILITY (2) ------ Large Storage Unit Targeting Computer > --- WEAPON (2) ------- Beamcaster > --- INVENTORY (15) --- Light Ion Engine Light Angular Momentum Engine Aluminum Leg Aluminum Leg Aluminum Leg Improved Heat Sink Compact Matter Pod (150) Light Armor Plating Heavy Assault Rifle Light Cannon Light Cannon Light Cannon Grenade Launcher Mining Laser Peak State ------------ > --- POWER ------------ (None) > --- PROPULSION ------- Aluminum Leg Aluminum Leg > --- UTILITY ---------- Large Storage Unit Targeting Computer > --- WEAPON ----------- Beamcaster Light Cannon > --- INVENTORY -------- Light Ion Engine Light Angular Momentum Engine Aluminum Leg Aluminum Leg Aluminum Leg Improved Heat Sink Compact Matter Pod Light Armor Plating Heavy Assault Rifle Light Cannon Light Cannon Light Cannon Light Cannon Grenade Launcher Mining Laser [Rating: 12] Favorites ----------- Power Light Ion Engine Engine Light Ion Engine Propulsion Aluminum Leg Leg Aluminum Leg Utility Improved Terrain Scanner Device Improved Terrain Scanner Storage Large Storage Unit Processor Targeting Computer Weapon Light Cannon Energy Gun Small Laser Ballistic Gun Assault Rifle Ballistic Cannon Light Cannon Launcher Grenade Launcher Build | -11 -10 -10 ------- Run | Yrd Mat Min Slots Evolved . | . . . Power . | . . . Propulsion . | . . . Utility . | . . . Weapon . | . . . Parts Attached 26 | 7 10 9 Power 3 | 1 1 1 Engine 3 | 1 1 1 Core . | . . . Reactor . | . . . Propulsion 9 | 2 4 3 Treads . | . . . Leg 9 | 2 4 3 Wheel . | . . . Hover . | . . . Flight . | . . . Utility 4 | 2 1 1 Device 1 | 1 . . Storage 2 | 1 1 . Processor 1 | . . 1 Hackware . | . . . Protection . | . . . Artifact . | . . . Weapon 10 | 2 4 4 Energy Gun 2 | 1 . 1 Energy Cannon . | . . . Ballistic Gun 1 | 1 . . Ballistic Cannon 6 | . 3 3 Launcher 1 | . 1 . Special Weapon . | . . . Impact Weapon . | . . . Slashing Weapon . | . . . Piercing Weapon . | . . . Special Melee Weapon . | . . . Unidentified Prototypes . | . . . Parts Lost 6 | . 1 5 Power 2 | . 1 1 Propulsion 2 | . . 2 Utility . | . . . Weapon 2 | . . 2 Highest Loss Streak 5 | . 1 5 To Critical Strikes . | . . . Average Slot Usage (%) 99 | . 99 99 Engine 13 | . 13 13 Leg 27 | . 27 27 Device 12 | . 14 10 Storage 14 | . 14 14 Processor 1 | . . 3 Energy Gun 2 | . 4 . Ballistic Gun 2 | . 4 . Ballistic Cannon 22 | . 18 27 Peak Build Rating 12 | 9 10 12 Average Rating 9 | 6 9 9 On Entrance 6 | . 9 10 Naked Turns . | . . . Heaviest Build 32 | 12 32 32 Greatest Support 20 | 20 20 20 Greatest Overweight (x) 1 | 1 1 1 Average Overweight (x) . | . . 1 Largest Inventory Capacity 15 | 8 15 15 Average Capacity 13 | 7 13 15 Most Carried 15 | 4 14 15 Average Carried 11 | 2 10 14 Final Capacity 15 | 8 15 15 Final Carried 14 | 4 14 14 Class Distribution -------------------- 76% | Mutant 23% | Scavenger-Mutant Dominant Class ---------------- Mutant | -10/Materials Mutant | -10/Mines Resources | -11 -10 -10 ----------- Run | Yrd Mat Min Matter Collected 825 | 288 198 339 Remotely . | . . . Salvage Created 903 | 133 467 303 Parts 57 | 9 32 16 Haulers Intercepted 1 | . 1 . Recyclers Shooed 1 | . 1 . Parts Field Recycled . | . . . Retrieved Matter . | . . . Parts Self-Destructed . | . . . Prevented . | . . . Kills | -11 -10 -10 ------- Run | Yrd Mat Min Combat Hostiles Destroyed 21 | . 14 7 Guns 6 | . 5 1 Cannons 10 | . 4 6 AOE 5 | . 5 . Classes Destroyed 9 | 2 5 2 Worker 1 | . 1 . Tunneler 2 | 2 . . Hauler 1 | . 1 . Recycler 3 | 1 . 2 Operator 2 | . 2 . Swarmer 6 | . 3 3 Grunt 13 | . 11 2 Sentry 1 | . . 1 Demolisher 1 | . . 1 Best Kill Streak 4 | 2 4 4 Combat Bots Only 3 | . 3 3 Max Kills in Single Turn 3 | 1 3 2 Gunslinging . | . . . Exploded 2 | . 2 . Melee . | . . . Uniques/NPCs Destroyed . | . . . Combat | -11 -10 -10 -------- Run | Yrd Mat Min Hostile Shots Fired 116 | . 50 66 Missed 22 | . 14 8 Damage Taken 1544 | . 445 1099 Core 292 | . 39 253 Absorbed by Shields . | . . . Regen/Repaired (Parts) 28 | . 28 . Core Remaining (%) 100 | 100 . . Volleys Fired 69 | 6 40 23 Largest 2 | 2 2 2 Hottest 110 | 60 70 110 Shots Fired 137 | 12 80 45 Gun 61 | 12 44 5 Cannon 69 | . 29 40 Launcher 7 | . 7 . Special . | . . . Kinetic 97 | 6 51 40 Thermal 33 | 6 22 5 Explosive 7 | . 7 . Electromagnetic . | . . . Robot Hit Streak 8 | 5 8 6 Robot Miss Streak 4 | 1 4 4 Penetration Max . | . . . Secondary Targets . | . . . Shots Hit Robots 80 | 8 49 23 Core Hits 44 | 5 27 12 Critical Kills . | . . . Critical Parts Destroyed . | . . . Critical Strikes 2 | . . 2 Blast 2 | . . 2 Melee Attacks . | . . . Impact . | . . . Slashing . | . . . Piercing . | . . . Sneak Attacks . | . . . Combat Hostiles . | . . . Follow-up Attacks . | . . . Damage Inflicted 1530 | 96 976 458 Guns 520 | 93 342 85 Cannons 632 | . 259 373 Explosions 371 | . 371 . Melee . | . . . Ramming 7 | 3 4 . Kinetic 777 | 28 376 373 Thermal 375 | 65 225 85 Explosive 371 | . 371 . Electromagnetic . | . . . Impact . | . . . Slashing . | . . . Piercing . | . . . Highest Corruption . | . . . Average Corruption . | . . . Corruption Purged . | . . . Corruption Blocked . | . . . Overload Shots . | . . . Overflow Damage 13 | . 13 . Projectiles . | . . . Explosions 13 | . 13 . Melee . | . . . Knockbacks 6 | . 3 3 Impact . | . . . Kinetic 6 | . 3 3 Secondary . | . . . Self-Inflicted Damage 10 | . 10 . Shots 1 | . 1 . Rammed . | . . . Targets Rammed 3 | 1 2 . Kicked 3 | 1 2 . Crushed . | . . . Highest Temperature 107 | . 87 107 Average Temperature 32 | . 26 41 Received Heat Transfer 261 | . 225 36 Siege Activations . | . . . Robots Corrupted . | . . . Combat Hostiles . | . . . Parts Fried . | . . . Impact Corruptions . | . . . Robots Melted . | . . . Combat Hostiles . | . . . Parts Melted . | . . . Heat Transferred 798 | 150 500 148 Parts Sabotaged . | . . . Parts Stolen . | . . . Parts Stripped . | . . . Power Chain Reactions . | . . . Alert | -11 -10 -10 ------- Run | Yrd Mat Min Peak Influence 280 | 15 280 204 Initial 79 | . 9 79 Average 117 | 6 128 121 Maximum Alert Level 1 | . 1 1 Low Security (%) 64 | 100 67 54 Level 1 35 | . 32 45 Level 2 . | . . . Level 3 . | . . . Level 4 . | . . . Level 5 . | . . . High Security . | . . . Max Security . | . . . Squads Dispatched 3 | . 3 . Investigation 1 | . 1 . Extermination . | . . . Reinforcement 2 | . 2 . Assault . | . . . Garrison . | . . . Intercept . | . . . Searches Triggered . | . . . Construction Impeded . | . . . Haulers Reinforced . | . . . Active Scanning Responses . | . . . Cargo Convoy Interrupts . | . . . Stealth | -11 -10 -10 --------- Run | Yrd Mat Min Distress Signals 3 | . 3 . Communications Jammed . | . . . Distress Signals . | . . . Times Spotted 33 | . 21 12 Peak Tracking Total 6 | . 6 5 Tactical Retreats 2 | . 2 . Traps | -11 -10 -10 ------- Run | Yrd Mat Min Traps Triggered 2 | . 2 . Indirectly . | . . . Trap Hack Attempts . | . . . Triggered . | . . . Disarmed . | . . . Reprogrammed . | . . . Reused . | . . . Traps Extracted . | . . . Installed . | . . . Triggered . | . . . Machines | -11 -10 -10 ---------- Run | Yrd Mat Min Machines Disabled 1 | . 1 . Max in Single Turn 1 | . 1 . Machines Repaired . | . . . Machines Dismantled . | . . . Machines Sabotaged . | . . . Overloaded Fab Kills . | . . . Hacking | -11 -10 -10 --------- Run | Yrd Mat Min Machines Accessed 5 | . 4 1 Terminals 4 | . 3 1 Fabricators . | . . . Repair Stations 1 | . 1 . Recycling Units . | . . . Scanalyzers . | . . . Garrison Access . | . . . Total Hacks 18 | . 12 6 Successful 7 | . 6 1 Failed 11 | . 6 5 Catastrophic 2 | . 1 1 Database Lockouts . | . . . Manual 14 | . 8 6 Terminals 15 | . 9 6 Fabricators . | . . . Repair Stations 3 | . 3 . Recycling Units . | . . . Scanalyzers . | . . . Garrison Access . | . . . Terminal Hacks 2 | . 2 . Branch Access Points 1 | . 1 . Zone Layout 1 | . 1 . Fabricator Hacks . | . . . Repair Station Hacks 2 | . 2 . Scan Component 1 | . 1 . Repair 1 | . 1 . Recycling Unit Hacks . | . . . Scanalyzer . | . . . Garrison Access Hacks . | . . . Unauthorized Hacks 3 | . 2 1 Terminals 3 | . 2 1 Botnet 3 | . 2 1 Fabricators . | . . . Repair Stations . | . . . Recycling Units . | . . . Scanalyzers . | . . . Garrison Access . | . . . Data Cores Recovered . | . . . Used . | . . . Hacking Detections 5 | . 4 1 Full Trace Events 2 | . 1 1 Feedback Events . | . . . Feedback Blocked . | . . . Robot Schematics Acquired . | . . . Robots Built . | . . . Authchips . | . . . Time . | . . . Total Robot Build Rating . | . . . Part Schematics Acquired . | . . . Parts Built . | . . . Authchips . | . . . Time . | . . . Total Part Build Rating . | . . . Parts Repaired 1 | . 1 . Time 26 | . 26 . Parts Recycled . | . . . Recycled Matter . | . . . Retrieved Matter . | . . . Retrieved Components . | . . . Parts Scanalyzed . | . . . Part Schematics Acquired . | . . . Parts Damaged . | . . . Bothacking | -11 -10 -10 ------------ Run | Yrd Mat Min Used RIF Installer . | . . . Robots Hacked . | . . . Non-combat . | . . . Combat . | . . . Robot Hacks Applied . | . . . Relay Couplers Released . | . . . Fabnet Peak Effective % . | . . . Robots Rewired . | . . . Allies Hacked . | . . . Hacks Repelled . | . . . Allies | -11 -10 -10 -------- Run | Yrd Mat Min Total Allies . | . . . Largest Group . | . . . Highest-Rated Group . | . . . Highest-Rated Ally . | . . . Total Orders . | . . . Ally Attacks . | . . . Total Damage . | . . . Kills . | . . . Allies Corrupted . | . . . Allies Melted . | . . . Intel | -11 -10 -10 ------- Run | Yrd Mat Min Robot Analysis Total . | . . . Derelict Logs Recovered 1 | . . 1 Drone Launches . | . . . Drone Recoveries . | . . . Exploration | -11 -10 -10 ------------- Run | Yrd Mat Min Turns Passed 1674 | 107 909 658 Spaces Moved 753 | 53 401 299 Core 6 | 6 . . Treads . | . . . Legs 747 | 47 401 299 Wheels . | . . . Hover . | . . . Flight . | . . . Fastest Speed 50 | 50 120 190 Average Speed 177 | 120 175 190 Slowest Speed 190 | 190 190 190 Overloaded Moves . | . . . Propulsion Burnouts . | . . . Robots Hopped . | . . . Cave-ins Triggered . | . . . Exploration Rate (%) 43 | 5 53 73 Regions Visited 2 Branch Regions 1 Pre-discovered Areas . | . . . Known Exits Taken 1 | . 1 . Unknown Exits Taken 1 | 1 . . Scrap Searched . | . . . Spaces Dug . | . . . Terrain Destroyed 29 | . 29 . Melee . | . . . Projectile . | . . . AOE 29 | . 29 . Terrain Rammed . | . . . Walls Destroyed . | . . . Machines Disabled . | . . . Actions | -11 -10 -10 --------- Run | Yrd Mat Min Total 953 | 80 524 349 Wait 60 | 10 47 3 Move 752 | 53 400 299 Hop . | . . . Pick Up 24 | 4 14 6 Fast Attach 12 | 7 4 1 Attach 1 | . . 1 Detach 2 | . 2 . Swap 13 | . 6 7 Drop 18 | . 9 9 Fire 69 | 6 40 23 Melee . | . . . Ram . | . . . Kick 2 | . 2 . Crush . | . . . Escape Stasis . | . . . Rewire . | . . . Trap . | . . . Miscellaneous . | . . . Route ------- -11/Scrapyard -10/Materials -10/Mines (discovered 2 exits: [*Mat x2]) History --------- Turn | Location | Event 22 | -11/Scrapyard | Discovered new exit (range 15) 108 | -11/Scrapyard | Entered Materials 151 | -10/Materials | Discovered new exit (range 18) 302 | -10/Materials | Build established: Mutant 606 | -10/Materials | Identified exit to Mines 683 | -10/Materials | Repaired Aluminum Leg 1017 | -10/Materials | Entered Mines 1045 | -10/Mines | Build established: Scavenger-Mutant 1104 | -10/Mines | Discovered new exit (range 8) 1327 | -10/Mines | Discovered new exit (range 16) 1416 | -10/Mines | Found a hidden stash of uninstalled traps 1430 | -10/Mines | Build established: Mutant 1480 | -10/Mines | Joined a pair of Derelicts in attacking an 0b10 outpost 1584 | -10/Mines | Learned 4 Materials zone layouts 1616 | -10/Mines | Assembled infested the area 1662 | -10/Mines | Core integrity fell below 50% 1675 | -10/Mines | Core integrity fell below 20% 1675 | -10/Mines | Destroyed by D-53 Grenadier with Mini Grenade Launcher Last Messages --------------- 01662_ U-05 Engineer lays Concrete. 01662_ D-53 Grenadier destroyed. 01662_ R-06 Scavenger destroyed. 01663_ U-05 Engineer lays Concrete. 01665_ The unstable cave ceiling collapses. 01665_ K-01 Serf collects debris. 01665_ Aluminum Leg destroyed. 01666_ U-05 Engineer builds a Wall. 01666_ Lgt. Cannon destroyed. 01667_ Aluminum Leg destroyed. 01669_ The unstable cave ceiling collapses. 01669_ K-01 Serf collects debris. 01670_ The unstable cave ceiling collapses. 01670_ U-05 Engineer lays Concrete. 01671_ U-05 Engineer builds a Wall. 01672_ The unstable cave ceiling collapses. 01672_ K-01 Serf collects debris. 01673_ Lgt. Cannon destroyed. 01675_ The unstable cave ceiling collapses. 01675_ U-05 Engineer lays Concrete. Map ----- +----------------------------------------------------+ | #???#??????????????????????????????????????? | | #??????????????????????????????????????????? | | #?#????????????????????????????????????????? | | ########?????#???????????????????????????????????? | | ??#????????????#?????????????????????????????????? | | ###???#????#??#??????????????????????????????????? | | #???????????#??? ?? ????????????????????????? | | #####??#??????????? ?????????????????????????? | | #??????#???? ???? ?????????????????????????? | | #?#####??????????? #?????????????????????????? | | #?## ###????????? #?????????????????????????? | | ### #?????#???# #??????# ????????????????? | | #?# #?????????# ##????# ???????????????? | | #?# ##?????????# ##?## ????????????????? | | #?## ##????#????# ## ????????????????? | | #??# ##?####?### ????????????????? | | ##?# ### #### t#?????????????????? | | #### #??????????????????? | | ## =kt #??????????????????? | | =%= #??????????????????? | | % = % #?#????????????????? | | u %##??????????????????? | | ##!d ##??????????????????? | | ## ### #??????????????????? | | #####?## ## #?#????????????????? | | ???????## ########r @ ##?????????????????? | | ?#?#?##?########??# a #??????????????????? | | #????#?????## #### #??????????????????? | | ??????????## # ##??????????????????? | | ???#?????## ###### ##??????????????????? | | ??#????### #????# ####???????????????? | | ????????# #????# ##??????????????? | | ???????## #?#?## ##?????????????? | | ???????# ##?### ##????????????? | | ??????## ##??# ### #????????????? | | ####### ####?# ##?## #????????????? | | ##????## a#???### #????????????? | | ##??????# #?????#### #????????????? | | ### #???????#a #????????## ##???????????? | | #?# #?####### #?????????## ### #? | | ?## ### ###????????## # | | ?# ### ##????????## # | | ?# ##?## ##?????????# #? | | ?# #???# ##????????? #######? | | ## #???# #?????????? ##??????? | | # ##???## #??????????? ##???????? | | ##?????## #########????#????????? | | ##???????## #?????????????? | | #???########## #?????????????? | | #?###"%%!##??## ######## #?????????????? | +----------------------------------------------------+ Best States ------------- Heat Dissipation 25 Energy Generation 10 Energy Capacity 250 Matter Stores 300 Matter Capacity 300 Sight Range 16 Terrain Scan Range 16 Terrain Scan Density 10 Evasion (%) 55 Targeting Accuracy 5 Item Schematics ----------------- None Robot Schematics ------------------ None Fabricated ------------ Nothing Alien Tech Used ----------------- None Achievements -------------- None Challenges ------------ None Game ------ Seed BombRecoilBiocell Manual? 0 Play Time 00:16:14 Cumulative 48.2 hours Start 2024.08.21 @ 19:38:16 End 2024.08.21 @ 19:52:52 Sessions 1 Manual Loads 0 Difficulty Rogue Special Mode None Game No. 62 Rogue 62 Adventurer 0 Explorer 0 Win Type - Total 0 Types 0/0/0/0/0/0/0/0/0 Lore% 14 Gallery% 26 Achievement% 26 Wizard Run 0 Options --------- Layout 1 ASCII 0 Keyboard 0 Movement Numpad Keybinds 0 Fullscreen 1 Font 32/SmallcapsGlow Map View 50x40 Zoom Use 16% Tactical HUD 1 Map Filters NONE Filters NONE Steam 1 RUN: 35973776-07f0-4689-9f9e-54ab50b02c48